{"text_format":"1","workbook":"xlsx","n_sheets":1,"sheets":["Лист1"],"not_rendered":{"charts":0,"images":0,"macros":1,"external_links":0,"defined_names":26,"comments":0,"pivot_tables":0},"unopened":[],"bounds":{"document_bytes":16777216,"sheet_cells":100000,"rows_first":2000,"rows_last":500,"rows_between":2000,"halvings":0,"cell_chars":16384,"cell_head_chars":4096},"cells_cut":0,"cells_raw":0,"read":"whole","date_system":"1900"}

{"sheet":"Лист1","index":0,"n_rows":41,"n_cols":9,"rows_kept":41,"cut":false,"hidden":false,"merged":[[48,5,48,8],[43,0,47,8],[48,0,48,2],[2,0,2,8],[5,0,5,8],[3,0,3,8],[4,0,4,8],[8,0,8,5],[6,8,7,8],[8,6,8,8],[40,0,40,5],[6,4,6,5],[6,6,6,7],[6,0,7,0],[6,1,7,1],[32,0,32,5],[32,6,32,8],[6,2,7,2],[20,0,20,5],[20,6,20,8],[26,0,26,5],[26,6,26,8],[6,3,7,3]]}
["                                 Расчет стоимости согласно тарифам в форме социального обслуживания на дому в Алтайском крае на 01.01.2022г.,"]
["                                                                                            договор № от 01 апреля 2020 г."]
[]
[" (Ф.И.О. заказчика)"]
[]
["(адрес, дата рождения заказчика)"]
["№ п/п","Наименование социальной услуги","Стоимость однократного предоставления социальной услуги, руб.","Переодичность, обьем, норма времени, предоставления социальных услуг в соответствии со стандартами","Потребность клиента в данном виде услуг ",null,"Стоимость общего количества услуг данного вида",null,"Примечание "]
[null,null,null,null,"в месяц","в год","в месяц","в год"]
["Социально-бытовые услуги"]
[{"$f":"MAX(A$9:A9)+1","v":1},"Покупка за счет средств получателя социальных услуг и доставка на дом продуктов питания, промышленных товаров первой необходимости, средств санитарии и гигиены, лекарств, средств ухода, книг, газет, журналов",122,"Не более 2 раз в неделю,               37 мин,",8,104,{"$f":"H10/12","v":1057.3333333333333},{"$f":"C10*F10","v":12688},"При предоставлении социальной услуги общее количество закупаемых товаров не должно превышать 15 наименований, вес однократно закупаемых товаров не должен превышать 5 кг."]
[{"$f":"MAX(A$9:A10)+1","v":2},"Помощь в приготовлении пищи",96,"Не более 2 раз в неделю,               29 мин,",1,12,{"$f":"H11/12","v":96},{"$f":"C11*F11","v":1152},"При однократном предоставлении социальной услуги производится приготовление не более 3 блюд."]
[{"$f":"MAX(A$9:A11)+1","v":3},"Оплата за счет средств получателя социальных услуг жилищно-коммунальных услуг и услуг связи",83,"Не более 1 раза в месяц                          25 мин",2,24,166,1992]
[{"$f":"MAX(A$9:A12)+1","v":4},"Топка печей, покупка за счет средств получателя социальных услуг топлива (в жилых помещениях без центрального отопления)                                                        ",96,"Неболее 2 раз в неделю,               29 мин.",4,54,432,5184,"Услуга включает: доставку топлива от места склади­рования к печи, вынос золы, растопку печи, а также саму топку в случае, если получатель соци­альных услуг не может самостоятельно ее осуществить"]
[{"$f":"MAX(A$9:A13)+1","v":5},"Обеспечение водой (в жилых помещениях без центрального водоснабжения)",69,"для бытовых нужд - не более  раза в неделю, 21 мин. ",4,null,0,0,"для бытовых нужд в объеме не более 100 литров в неделю, для помыв­ки в бане - не более 40 литров в неделю, для стирки белья - не более 120 литров в месяц."]
[{"$f":"MAX(A$9:A14)+1","v":6},"Предоставление гигиенических услуг лицам, не способным по состоянию здоровья самостоятельно осуществлять за собой уход",191,"Не более 1 раза в неделю,                58 мин.",8,104,1655.3333333333333,19864,"мытье головы, причесывание, стрижка ногтей и волос, смена постельного бе­лья"]
[{"$f":"MAX(A$9:A15)+1","v":7},"Уборка жилых помещений",109,"Не более 1 раз в неделю,                33 мин.",null,null,0,0,"При предоставлении социальной услуги площадь жилых помещений, подлежащих уборке, состав­ляет не более 33 кв. м для одного проживающего и не более 42 кв. м - для двух и более проживаю­щих."]
[{"$f":"MAX(A$9:A16)+1","v":8},"Организация помощи в уборке снега.                                                                                                              ",83,"Неболее 2 раз в неделю,               25 мин.",null,null,0,0,"организация помощи в уборке снега с дорожек ко входу в дом и к туалету путем привлече­ния к данной работе граждан и организаций (в том числе за счет средств получателя социальных услуг)."]
[{"$f":"MAX(A$9:A17)+1","v":9}]
[{"$f":"MAX(A$9:A18)+1","v":10}]
[{"$f":"MAX(A$9:A19)+1","v":11}]
["Социально-медицинские услуги"]
[{"$f":"MAX(A$9:A21)+1","v":12}]
[{"$f":"MAX(A$9:A22)+1","v":13},null,null,null,8]
[{"$f":"MAX(A$9:A23)+1","v":14}]
[{"$f":"MAX(A$9:A24)+1","v":15}]
[{"$f":"MAX(A$9:A25)+1","v":16}]
["Социально-психологические услуги"]
[{"$f":"MAX(A$9:A27)+1","v":17}]
[{"$f":"MAX(A$9:A28)+1","v":18}]
[{"$f":"MAX(A$9:A29)+1","v":19},null,null,null,8]
[{"$f":"MAX(A$9:A30)+1","v":20}]
[{"$f":"MAX(A$9:A31)+1","v":21}]
["Социально-трудовые  услуги"]
[{"$f":"MAX(A$9:A33)+1","v":22}]
[{"$f":"MAX(A$9:A34)+1","v":23}]
[{"$f":"MAX(A$9:A35)+1","v":24}]
[{"$f":"MAX(A$9:A36)+1","v":25},null,null,null,8]
[{"$f":"MAX(A$9:A37)+1","v":26}]
[{"$f":"MAX(A$9:A38)+1","v":27}]
[{"$f":"\"\"","v":""},"ИТОГО",null,null,{"$f":"SUM(E10:E34)","v":43}]
["Стоимость общего количества услуг в месяц составляет ",null,null,null,null,null,{"$f":"SUM(G10:G17)","v":3406.6666666666665}]